lending/lending_fUSD_20251106
["ID","MTS","AMOUNT","RATE_DAILY","PERIOD"]
[393301694,1762437129793,4161.27,0.00038656,120]
[393301695,1762437130161,4161.27,0.00038656,120]
[393301696,1762437130547,4161.27,0.00038656,120]
[393301697,1762437130919,4161.27,0.00038656,120]
[393301698,1762437131295,4161.27,0.00038656,120]
[393301699,1762437131675,4161.27,0.00038656,120]
[393301700,1762437132040,4161.27,0.00038656,120]
[393301701,1762437132471,4161.27,0.00038656,120]
[393301702,1762437132844,4161.27,0.00038656,120]
[393301703,1762437133261,4161.50965203,0.00038656,120]
[393301732,1762437363079,200.0,0.00038656,30]
[393301738,1762437650711,500.0,0.00038633,120]
[393301739,1762437651096,500.0,0.00038633,120]
[393301740,1762437651540,500.0,0.00038633,120]
[393301741,1762437652205,500.0,0.00038633,120]
[393301742,1762437652584,500.0,0.00038633,120]
[393301743,1762437652865,276.82580475,0.00014809,2]
[393301744,1762437653022,500.0,0.00038633,120]
[393301745,1762437653427,500.0,0.00038633,120]
[393301746,1762437653817,500.0,0.00038633,120]
[393301747,1762437654243,500.0,0.00038633,120]
[393301748,1762437654658,500.0,0.00038633,120]
[393301749,1762437655051,500.0,0.00038633,120]
[393301750,1762437655433,181.03098153,0.00038633,120]
[393301751,1762437662886,200.0,0.00038633,30]
[393301777,1762437911454,6000.0,0.00038634,30]
[393301778,1762437934084,1093.0,0.00038634,30]
[393301784,1762437954811,151.0,0.00014809,2]
[393301785,1762437961505,200.0,0.00038634,30]
[393301786,1762438047831,540.0,0.00038634,120]
[393301816,1762438231935,-1118.98,0.00015261,2]
[393301836,1762438232105,-0.27,0.00015261,2]
[393301838,1762438232115,-1119.25,0.00015713,2]
[393301840,1762438232125,-1119.25,0.00016164,2]
[393301842,1762438232134,-1903.77,0.00016438,2]
[393301844,1762438232144,-1200.0,0.0001652,2]
[393301846,1762438232154,-4587.86,0.00016521,2]
[393301847,1762438232163,-300.0,0.00016615,2]
[393301848,1762438232172,-300.0,0.00016615,2]
[393301849,1762438232181,-1119.25,0.00016616,2]
[393301850,1762438232190,-250.0,0.00016646,2]
[393301851,1762438232200,-1000.0,0.00016674,2]
[393301852,1762438232210,-154.53,0.00016694,2]
[393301853,1762438232220,-200.0,0.00016707,2]
[393301854,1762438232230,-179.57776631,0.00016785,2]
[393301855,1762438232239,-500.0,0.00016785,2]
[393301856,1762438232249,-628.94773235,0.00016785,2]
[393301857,1762438232258,-500.0,0.00016785,2]
[393301858,1762438232268,-466.5099567,0.00016785,2]
[393301859,1762438232278,-500.0,0.00016785,2]
[393301861,1762438232287,-500.0,0.00016785,2]
[393301863,1762438232297,-289.87235092,0.00016787,2]
[393301864,1762438232306,-2306.42652678,0.00016787,2]
[393301865,1762438232316,-300.0,0.00016787,2]
[393301866,1762438232326,-300.0,0.00016787,2]
[393301867,1762438232335,-300.0,0.00016787,2]
[393301868,1762438232344,-168.0,0.00016792,2]
[393301869,1762438232356,-376.89,0.00016869,2]
[393301870,1762438232366,-250.0,0.00017,2]
[393301873,1762438232375,-1119.25,0.00017068,2]
[393301876,1762438232384,-168.0,0.00017107,2]
[393301879,1762438232393,-168.0,0.00017113,2]
[393301882,1762438232402,-168.0,0.00017173,2]
[393301885,1762438232412,-168.0,0.00017232,2]
[393301888,1762438232422,-1552.0,0.00017306,2]
[393301891,1762438232431,-168.0,0.00017458,2]
[393301893,1762438232442,-477.87911524,0.00017464,2]
[393301895,1762438232455,-550.0,0.00017489,2]
[393301897,1762438232465,-823.88288796,0.00017489,2]
[393301899,1762438232475,-1119.25,0.0001752,2]
[393301901,1762438232486,-207.60279799,0.00017565,2]
[393301903,1762438232495,-500.0,0.00017589,2]
[393301904,1762438232505,-500.0,0.00017589,2]
[393301905,1762438232514,-169.74,0.00017589,2]
[393301906,1762438232526,-500.0,0.00017589,2]
[393301907,1762438232535,-500.0,0.00017589,2]
[393301908,1762438232544,-500.0,0.00017589,2]
[393301909,1762438232553,-500.0,0.00017589,2]
[393301910,1762438232562,-500.0,0.00017589,2]
[393301911,1762438232571,-392.46,0.00017599,2]
[393301912,1762438232580,-154.53,0.00017621,2]
[393301913,1762438232590,-893.73840764,0.00017656,2]
[393301914,1762438232600,-151.0,0.0001767,2]
[393301915,1762438232609,-151.0,0.0001767,2]
[393301916,1762438232619,-151.0,0.0001767,2]
[393301917,1762438232628,-151.0,0.0001767,2]
[393301918,1762438232637,-151.0,0.0001767,2]
[393301919,1762438232647,-151.0,0.0001767,2]
[393301920,1762438232656,-151.0,0.0001767,2]
[393301921,1762438232666,-151.0,0.0001767,2]
[393301922,1762438232675,-174.69010546,0.0001767,2]
[393301923,1762438232684,-820.0,0.00017681,2]
[393301924,1762438232694,-1596.0,0.00017681,2]
[393301925,1762438232703,-1273.0,0.00017681,2]
[393301926,1762438232713,-812.0,0.00017681,2]
[393301927,1762438232722,-1188.0,0.00017681,2]
[393301928,1762438232731,-905.0,0.00017681,2]
[393301929,1762438232740,-559.0,0.00017681,2]
[393301930,1762438232750,-2141.0,0.00017681,2]
[393301931,1762438232759,-6658.0,0.00017681,2]
[393301932,1762438232768,-823.88288795,0.00017744,2]
[393301933,1762438232777,-178.10006138,0.000178,2]
[393301934,1762438232787,-1000.0,0.000178,2]
[393301935,1762438232796,-5000.0,0.000178,2]
[393301936,1762438232804,-1024.83695931,0.000178,2]
[393301937,1762438232814,-4209.49543501,0.00017811,2]
[393301938,1762438232822,-1024.83695931,0.00017811,2]
[393301939,1762438232831,-176.193,0.00017822,2]
[393301940,1762438232840,-4209.49543501,0.00017822,2]
[393301941,1762438232850,-1024.83695931,0.00017822,2]
[393301942,1762438232859,-4209.49543501,0.00017833,2]
[393301943,1762438232868,-178.10006138,0.00017833,2]
[393301944,1762438232878,-1024.83695931,0.00017833,2]
[393301945,1762438232888,-4209.49543501,0.00017844,2]
[393301946,1762438232897,-1024.83695931,0.00017844,2]
[393301947,1762438232906,-1740.062,0.00017854,2]
[393301948,1762438232915,-2000.0,0.00017855,2]
[393301949,1762438232924,-200.0,0.00017855,2]
[393301950,1762438232933,-4209.49543501,0.00017856,2]
[393301951,1762438232942,-1024.83695931,0.00017856,2]
[393301952,1762438232953,-2000.0,0.00017856,2]
[393301953,1762438232962,-200.0,0.00017856,2]
[393301954,1762438232971,-2005.63093094,0.00017867,2]
[393302002,1762438240211,-6475.0,0.00017681,2]
[393302003,1762438240221,-498.73785974,0.00017855,2]
[393302004,1762438240231,-237.69119627,0.00017855,2]
[393302005,1762438240240,-177.09656274,0.00017855,2]
[393302006,1762438240250,-207.49598618,0.00017855,2]
[393302007,1762438240259,-2203.86450407,0.00017867,2]
[393302008,1762438240269,-178.10006138,0.00017867,2]
[393302009,1762438240278,-1024.83695931,0.00017867,2]
[393302010,1762438240287,-4209.49543501,0.00017878,2]
[393302011,1762438240300,-1024.83695931,0.00017878,2]
[393302012,1762438240310,-4209.49543501,0.00017889,2]
[393302013,1762438240320,-1024.83695931,0.00017889,2]
[393302014,1762438240329,-500.0,0.00017899,2]
[393302015,1762438240339,-500.0,0.00017899,2]
[393302016,1762438240349,-500.0,0.00017899,2]
[393302017,1762438240359,-500.0,0.00017899,2]
[393302018,1762438240369,-266.938,0.00017899,2]
[393302019,1762438240378,-500.0,0.00017899,2]
[393302020,1762438240388,-500.0,0.00017899,2]
[393302021,1762438240398,-500.0,0.00017899,2]
[393302022,1762438240408,-339126.42249705,0.000179,2]
[393302023,1762438240420,-80873.57750295,0.000179,2]
[393302024,1762438240429,-1000.0,0.000179,2]
[393302025,1762438240439,-2744.9989,0.000179,2]
[393302026,1762438240452,-25687.7308,0.000179,2]
[393302027,1762438240461,-4209.49543501,0.000179,2]
[393302028,1762438240470,-166.59185113,0.000179,2]
[393302029,1762438240479,-1229.51174083,0.000179,2]
[393302030,1762438240490,-178.10006138,0.000179,2]
[393302031,1762438240502,-2979.73443888,0.000179,2]
[393302032,1762438240511,-325.03961076,0.000179,2]
[393302033,1762438240521,-1024.83695931,0.000179,2]
[393302034,1762438240530,-500.0,0.000179,2]
[393302035,1762438240540,-500.0,0.000179,2]
[393302036,1762438240551,-500.0,0.000179,2]
[393302037,1762438240560,-500.0,0.000179,2]
[393302038,1762438240569,-500.0,0.000179,2]
[393302039,1762438240579,-500.0,0.000179,2]
[393302040,1762438240588,-500.0,0.000179,2]
[393302041,1762438240598,-500.0,0.000179,2]
[393302042,1762438240608,-500.0,0.000179,2]
[393302043,1762438240619,-500.0,0.000179,2]
[393302044,1762438240628,-500.0,0.000179,2]
[393302045,1762438240637,-500.0,0.000179,2]
[393302046,1762438240647,-500.0,0.000179,2]
[393302047,1762438240656,-500.0,0.000179,2]
[393302048,1762438240664,-500.0,0.000179,2]
[393302049,1762438240674,-500.0,0.000179,2]
[393302050,1762438240683,-500.0,0.000179,2]
[393302051,1762438240695,-500.0,0.000179,2]
[393302052,1762438240704,-283.09154533,0.000179,2]
[393302053,1762438240714,-2847.42712,0.0001791,2]
[393302054,1762438240725,-318.30707403,0.00017934,2]
[393302055,1762438240734,-500.0,0.00017973,2]
[393302056,1762438240744,-500.0,0.00017973,2]
[393302057,1762438240753,-527.53172848,0.00017973,2]
[393302058,1762438240762,-219.65200309,0.00017973,2]
[393302059,1762438240772,-500.0,0.00017973,2]
[393302060,1762438240781,-500.0,0.00017973,2]
[393302061,1762438240791,-500.0,0.00017973,2]
[393302062,1762438240801,-500.0,0.00017973,2]
[393302063,1762438240810,-500.0,0.00017973,2]
[393302064,1762438240820,-406.97735465,0.00017973,2]
[393302065,1762438240829,-500.0,0.00017973,2]
[393302066,1762438240839,-500.0,0.00017973,2]
[393302067,1762438240848,-500.0,0.00017973,2]
[393302068,1762438240859,-500.0,0.00017973,2]
[393302069,1762438240868,-500.0,0.00017973,2]
[393302070,1762438240878,-500.0,0.00017973,2]
[393302071,1762438240889,-500.0,0.00017973,2]
[393302072,1762438240905,-500.0,0.00017973,2]
[393302073,1762438240915,-500.0,0.00017973,2]
[393302074,1762438240925,-242.9,0.00017973,2]
[393302075,1762438240934,-500.0,0.00017981,2]
[393302076,1762438240944,-500.0,0.00017989,2]
[393302077,1762438240954,-500.0,0.00017989,2]
[393302078,1762438240964,-150.0,0.00017989,2]
[393302079,1762438240975,-500.0,0.00017989,2]
[393302080,1762438240985,-150.0,0.00017989,2]
[393302081,1762438240996,-500.0,0.00017989,2]
[393302082,1762438241005,-500.0,0.00017989,2]
[393302083,1762438241015,-500.0,0.00017989,2]
[393302084,1762438241024,-500.0,0.00017989,2]
[393302085,1762438241034,-500.0,0.00017989,2]
[393302086,1762438241044,-500.0,0.00017989,2]
[393302087,1762438241055,-500.0,0.00017989,2]
[393302088,1762438241065,-202.3599179,0.00017989,2]
[393302089,1762438241075,-150.0,0.00017989,2]
[393302090,1762438241084,-150.0,0.00017989,2]
[393302091,1762438241094,-500.0,0.00017989,2]
[393302092,1762438241108,-300.0,0.00017989,2]
[393302093,1762438241118,-150.0,0.00017989,2]
[393302094,1762438241128,-150.0,0.00017989,2]
[393302095,1762438241138,-500.0,0.00017989,2]
[393302096,1762438241149,-150.0,0.00017989,2]
[393302097,1762438241159,-659.0,0.00017989,2]
[393302098,1762438241170,-500.0,0.00017989,2]
[393302099,1762438241180,-150.0,0.00017989,2]
[393302100,1762438241190,-500.0,0.00017989,2]
[393302101,1762438241200,-150.0,0.00017989,2]
[393302102,1762438241210,-500.0,0.00017989,2]
[393302103,1762438241220,-500.0,0.00017989,2]
[393302104,1762438241230,-500.0,0.00017989,2]
[393302105,1762438241240,-500.0,0.00017989,2]
[393302106,1762438241250,-150.0,0.00017989,2]
[393302107,1762438241260,-150.0,0.00017989,2]
[393302108,1762438241269,-162.44257324,0.00017989,2]
[393302109,1762438241279,-150.0,0.00017989,2]
[393302110,1762438241288,-150.0,0.00017989,2]
[393302111,1762438241299,-150.0,0.00017989,2]
[393302112,1762438241311,-150.0,0.00017989,2]
[393302113,1762438241321,-150.0,0.00017989,2]
[393302114,1762438241331,-500.0,0.00017989,2]
[393302115,1762438241340,-150.0,0.00017989,2]
[393302116,1762438241350,-500.0,0.00017989,2]
[393302117,1762438241362,-660.5035334,0.00017997,2]
[393302118,1762438241372,-158553.256249,0.00017997,2]
[393302119,1762438241382,-17726.7954845,0.00017997,2]
[393302120,1762438241392,-4529.0353559,0.00017997,2]
[393302121,1762438241402,-500.0,0.00017999,2]
[393302122,1762438241412,-500.0,0.00017999,2]
[393302123,1762438241423,-500.0,0.00017999,2]
[393302124,1762438241432,-500.0,0.00017999,2]
[393302125,1762438241444,-500.0,0.00017999,2]
[393302126,1762438241457,-500.0,0.00017999,2]
[393302127,1762438241468,-500.0,0.00017999,2]
[393302128,1762438241478,-500.0,0.00017999,2]
[393302129,1762438241490,-500.0,0.00017999,2]
[393302130,1762438241500,-500.0,0.00017999,2]
[393302131,1762438241510,-500.0,0.00017999,2]
[393302132,1762438241520,-500.0,0.00017999,2]
[393302133,1762438241531,-500.0,0.00017999,2]
[393302134,1762438241540,-500.0,0.00017999,2]
[393302135,1762438241551,-500.0,0.00017999,2]
[393302136,1762438241562,-500.0,0.00017999,2]
[393302137,1762438241572,-461.84,0.00017999,2]
[393302138,1762438241581,-500.0,0.00017999,2]
[393302139,1762438241591,-500.0,0.00017999,2]
[393302140,1762438241601,-500.0,0.00017999,2]
[393302141,1762438241612,-500.0,0.00017999,2]
[393302142,1762438241622,-500.0,0.00017999,2]
[393302143,1762438241632,-500.0,0.00017999,2]
[393302144,1762438241642,-500.0,0.00017999,2]
[393302145,1762438241651,-500.0,0.00017999,2]
[393302146,1762438241661,-500.0,0.00017999,2]
[393302147,1762438241671,-500.0,0.00017999,2]
[393302148,1762438241682,-500.0,0.00017999,2]
[393302149,1762438241692,-500.0,0.00017999,2]
[393302150,1762438241703,-500.0,0.00017999,2]
[393302151,1762438241714,-500.0,0.00017999,2]
[393302152,1762438241724,-500.0,0.00017999,2]
[393302153,1762438241735,-500.0,0.00017999,2]
[393302154,1762438241746,-216.16319318,0.00017999,2]
[393302155,1762438241757,-1977.5436756,0.00017999,2]
[393302156,1762438241767,-1000.0,0.00017999,2]
[393302157,1762438241778,-150.0,0.00017999,2]
[393302158,1762438241788,-150.0,0.00017999,2]
[393302159,1762438241797,-150.82616451,0.00017999,2]
[393302160,1762438241807,-150.0,0.00017999,2]
[393302161,1762438241817,-500.0,0.00017999,2]
[393302162,1762438241827,-150.0,0.00017999,2]
[393302163,1762438241836,-500.0,0.00017999,2]
[393302164,1762438241846,-150.0,0.00017999,2]
[393302165,1762438241856,-150.0,0.00017999,2]
[393302166,1762438241866,-150.0,0.00017999,2]
[393302167,1762438241876,-150.0,0.00017999,2]
[393302168,1762438241886,-150.0,0.00017999,2]
[393302169,1762438241896,-150.0,0.00017999,2]
[393302170,1762438241906,-666.0,0.00017999,2]
[393302171,1762438241916,-300.0,0.00017999,2]
[393302172,1762438241926,-666.0,0.00017999,2]
[393302173,1762438241936,-500.0,0.00017999,2]
[393302174,1762438241945,-2847.42711,0.00017999,2]
[393302175,1762438241956,-2847.42712,0.00017999,2]
[393302176,1762438241966,-2240.0,0.00018,2]
[393302177,1762438241975,-195993.12870151,0.00018,2]
[393302178,1762438241993,-2139.9068,0.00018,2]
[393302186,1762438243421,-260.27334784,0.00018,2]
[393302210,1762438246079,-500.0,0.0001652,2]
[393302211,1762438246090,-147.31203061,0.0001652,2]
[393302212,1762438246102,-352.68796939,0.0001652,2]
[393302213,1762438246112,-500.0,0.0001652,2]
[393302214,1762438246122,-297.39659142,0.0001652,2]
[393302215,1762438246131,-66308.27786569,0.00018,2]
[393302216,1762438246540,-373.10258232,0.00018,2]
[393302218,1762438260980,200.0,0.00038634,30]
[393302219,1762438561617,200.0,0.00038634,30]
[393302220,1762438574979,1000.0,0.00013699,2]
[393302222,1762438689359,588.47,0.00025046,120]
[393302223,1762438747706,151.18605992,0.00016477,7]
[393302224,1762438809018,173.0,0.0002804,120]
[393302225,1762438810376,173.0,0.00029442,120]
[393302226,1762438822285,2591.03,0.00030137,120]
[393302227,1762438836580,1943.27,0.00030137,120]
[393302228,1762438854165,1457.46,0.00030137,120]
[393302229,1762438860814,200.0,0.00038634,30]
[393302230,1762438866714,2186.18,0.00030137,120]
[393302255,1762438904894,2186.18,0.00030137,120]
[393302256,1762438918684,150.0,0.00016355,120]
[393302257,1762439066869,500.0,0.00038634,120]
[393302258,1762439067228,549.6819749,0.00038634,120]
[393302259,1762439111766,174.0,0.00028413,120]
[393302260,1762439113508,174.0,0.00029834,120]
[393302261,1762439119053,2726.48419525,9e-05,2]
[393302262,1762439119076,3427.62058554,9e-05,2]
[393302263,1762439124764,1019.1274972,0.000108,2]
[393302265,1762439135245,5553.26191726,9e-05,2]
[393302266,1762439135267,3569.60678326,9e-05,2]
[393302272,1762439160383,6430.40321674,8e-05,2]
[393302273,1762439160405,2909.1396259,8e-05,2]
[393302274,1762439161291,200.0,0.00038634,30]
[393302277,1762439213153,7069.23353203,0.000162,5]
[393302283,1762439263508,2192.93606755,0.00013,2]
[393302284,1762439269912,4897.93430655,0.00015,2]
[393302285,1762439269936,10000.01,0.00015,2]
[393302286,1762439269958,10000.01,0.00015,2]
[393302287,1762439269981,10000.01,0.00015,2]
[393302288,1762439270004,10000.01,0.00015,2]
[393302289,1762439270027,10000.01,0.00015,2]
[393302290,1762439270823,-283.05367418,0.00015,2]
[393302292,1762439279591,-156.91050257,0.00015,2]
[393302294,1762439283201,300.0,0.00014999,2]
[393302298,1762439295384,-358.68384234,0.00015,2]
[393302300,1762439301677,-305.33426883,0.00015,2]
[393302301,1762439303809,-265.17897847,0.00015,2]
[393302306,1762439309418,-599.43734799,0.00015,2]
[393302308,1762439313853,500.0,0.00014999,2]
[393302309,1762439313914,500.0,0.00014999,2]
[393302310,1762439313946,68670.7267841,0.00015,3]
[393302311,1762439314004,500.0,0.00014999,2]
[393302312,1762439314054,500.0,0.00014999,2]
[393302313,1762439314112,500.0,0.00014999,2]
[393302314,1762439314161,500.0,0.00014999,2]
[393302315,1762439314215,500.0,0.00014999,2]
[393302316,1762439314264,500.0,0.00014999,2]
[393302317,1762439314331,500.0,0.00014999,2]
[393302318,1762439314381,500.0,0.00014999,2]
[393302319,1762439314434,500.0,0.00014999,2]
[393302320,1762439314483,500.0,0.00014999,2]
[393302321,1762439314542,500.0,0.00014999,2]
[393302322,1762439314608,500.0,0.00014999,2]
[393302323,1762439314660,500.0,0.00014999,2]
[393302324,1762439314712,500.0,0.00014999,2]
[393302325,1762439314762,500.0,0.00014999,2]
[393302326,1762439314810,500.0,0.00014999,2]
[393302327,1762439314864,500.0,0.00014999,2]
[393302328,1762439314921,200.01,0.00014999,2]
[393302330,1762439315019,-201.36621981,0.00014999,2]
[393302331,1762439317769,-98.62378019,0.00014999,2]
[393302332,1762439317799,-118.32513284,0.00014999,2]
[393302333,1762439319223,-300.43995928,0.00014999,2]
[393302334,1762439320780,-81.23490788,0.00014999,2]
[393302335,1762439320810,-113.76509212,0.00014999,2]
[393302336,1762439325171,-151.0,0.00014999,2]
[393302337,1762439327517,-235.23490788,0.00014999,2]
[393302338,1762439327543,-143.84891193,0.00014999,2]
[393302339,1762439328499,-356.15108807,0.00014999,2]
[393302340,1762439328534,-500.0,0.00014999,2]
[393302341,1762439328568,-500.0,0.00014999,2]
[393302342,1762439328812,-500.0,0.00014999,2]
[393302343,1762439328848,-500.0,0.00014999,2]
[393302344,1762439328886,-500.0,0.00014999,2]
[393302345,1762439328920,-500.0,0.00014999,2]
[393302346,1762439328957,-466.05092008,0.00014999,2]
[393302347,1762439328992,-500.0,0.00014999,2]
[393302348,1762439329026,-500.0,0.00014999,2]
[393302349,1762439329159,-500.0,0.00014999,2]
[393302350,1762439329192,-646.60509201,0.00014999,2]
[393302351,1762439332868,-347.42783103,0.00015,2]
[393302352,1762439335808,-302.46887359,0.00015,2]
[393302353,1762439341964,300.0,0.00014999,2]
[393302354,1762439342843,-319.24702903,0.00015,2]
[393302355,1762439344362,-195.7916167,0.00015,2]
[393302356,1762439349365,-281.35026555,0.00015,2]
[393302357,1762439352545,-203.62329649,0.00015,2]
[393302362,1762439370429,-203.01102594,0.00015,2]
[393302363,1762439373468,-195.00000016,0.00015,2]
[393302364,1762439376607,-300.0,0.00015,2]
[393302365,1762439381599,-191.23413128,0.00015,2]
[393302366,1762439383145,-233.0896263,0.00015,2]
[393302367,1762439384653,-362.36717236,0.00015,2]
[393302369,1762439400558,-151.89692149,0.00015,2]
[393302370,1762439402137,300.0,0.00014999,2]
[393302371,1762439402268,150.0,0.00014999,2]
[393302372,1762439402311,300.0,0.00014999,2]
[393302373,1762439403984,-184.73967899,0.00015,2]
[393302374,1762439404691,1005.94078894,0.00014999,2]
[393302375,1762439406064,-205.01292417,0.00015,2]
[393302376,1762439408221,-250.0,0.00015,2]
[393302377,1762439412926,-151.0,0.00015,2]
[393302378,1762439414650,-372.37402165,0.00015,2]
[393302379,1762439430462,-216.03,0.00015,2]
[393302387,1762439432132,-631.26578985,0.00015,2]
[393302388,1762439432143,-2483.07335103,0.00015,2]
[393302389,1762439432154,-1000.0,0.00015,2]
[393302390,1762439432166,-985.92817948,0.00015,2]
[393302391,1762439432288,-394.17718249,0.00015,2]
[393302392,1762439432301,-12730.17498531,0.00015,2]
[393302393,1762439432312,-29182.39357797,0.00015,2]
[393302394,1762439432323,-12342.75231003,0.00015,3]
[393302395,1762439432334,-9159.85198094,0.00015,3]
[393302396,1762439432344,-250.0,0.00015,2]
[393302397,1762439432354,-195.0,0.00015,2]
[393302398,1762439432363,-629.76667585,0.000153,2]
[393302399,1762439432373,-1052.32012632,0.000154,2]
[393302400,1762439432384,-166.66,0.00015862,2]
[393302401,1762439432394,-255.0,0.00016124,2]
[393302402,1762439432403,-166.66,0.00016196,2]
[393302403,1762439432412,-796.24,0.00016251,2]
[393302404,1762439432422,-1200.0,0.00016282,2]
[393302406,1762439432431,-166.38383739,0.00016283,2]
[393302408,1762439432440,-349.11650182,0.00016283,2]
[393302410,1762439432449,-16045.46,0.00016284,2]
[393302412,1762439432458,-200.0,0.00016327,2]
[393302414,1762439432467,-150.0,0.00016355,2]
[393302416,1762439432476,-2751.0,0.00016367,2]
[393302419,1762439432491,-300.0,0.00016416,2]
[393302421,1762439432506,-323.0,0.00016416,2]
[393302423,1762439432516,-350.53,0.00016495,2]
[393302425,1762439432526,-500.0,0.000165,2]
[393302427,1762439432536,-500.0,0.000165,2]
[393302429,1762439432545,-500.0,0.000165,2]
[393302431,1762439432555,-250.0,0.000165,2]
[393302433,1762439432564,-195.0,0.000165,2]
[393302435,1762439432574,-556.4,0.00016515,2]
[393302437,1762439432584,-166.66,0.0001653,2]
[393302439,1762439432594,-500.0,0.000166,2]
[393302441,1762439432604,-500.0,0.000166,2]
[393302443,1762439432614,-500.0,0.000166,2]
[393302445,1762439432623,-500.0,0.00016633,2]
[393302447,1762439432636,-527.53172848,0.00016633,2]
[393302449,1762439432646,-150.0,0.00016646,2]
[393302451,1762439432656,-1242.65586437,0.00016646,2]
[393302454,1762439432669,-2443.74413563,0.00016646,2]
[393302456,1762439432678,-151.0,0.00016657,2]
[393302458,1762439432688,-151.0,0.00016657,2]
[393302460,1762439432699,-151.0,0.00016657,2]
[393302462,1762439432708,-151.0,0.00016657,2]
[393302464,1762439432719,-151.0,0.00016657,2]
[393302466,1762439432730,-151.0,0.00016657,2]
[393302468,1762439432740,-151.0,0.00016657,2]
[393302470,1762439432750,-151.0,0.00016657,2]
[393302472,1762439432760,-151.0,0.00016657,2]
[393302474,1762439432769,-145.33705636,0.00016657,2]
[393302477,1762439432782,-5.66294364,0.00016657,2]
[393302479,1762439432792,-151.0,0.00016657,2]
[393302481,1762439432804,-151.0,0.00016657,2]
[393302483,1762439432814,-151.0,0.00016657,2]
[393302485,1762439432824,-151.0,0.00016657,2]
[393302487,1762439432833,-58.92031501,0.00016657,2]
[393302489,1762439432845,-92.07968499,0.00016657,2]
[393302491,1762439432855,-256.21770197,0.00016657,2]
[393302493,1762439432864,-151.0,0.00016657,2]
[393302495,1762439432874,-151.0,0.00016657,2]
[393302498,1762439432887,-151.0,0.00016657,2]
[393302500,1762439432898,-151.0,0.00016657,2]
[393302502,1762439432908,-151.0,0.00016657,2]
[393302504,1762439432918,-151.0,0.00016657,2]
[393302506,1762439432927,-151.0,0.00016657,2]
[393302508,1762439432937,-151.0,0.00016657,2]
[393302510,1762439432951,-151.0,0.00016657,2]
[393302512,1762439432960,-151.0,0.00016657,2]
[393302514,1762439432970,-28050.5,0.00016667,2]
[393302516,1762439432980,-588.47,0.00016697,2]
[393302518,1762439432990,-556.4,0.00016789,2]
[393302520,1762439433003,-999.0,0.00016852,3]
[393302522,1762439433013,-166.66,0.00016864,2]
[393302525,1762439433026,-1852.42,0.00016874,2]
[393302526,1762439433036,-300.0,0.0001694,2]
[393302529,1762439433047,-300.0,0.0001694,2]
[393302531,1762439433057,-300.0,0.0001694,2]
[393302533,1762439433067,-300.0,0.0001694,2]
[393302535,1762439433078,-300.0,0.0001694,2]
[393302537,1762439433088,-1742.27231293,0.00016948,2]
[393302539,1762439433098,-250.0,0.00017,2]
[393302541,1762439433109,-316.74901112,0.00017,2]
[393302543,1762439433118,-520.11501514,0.00017048,2]